bitfinex/quotes_BTCUSD_20250324
["timestamp","ask_amount","ask_price","bid_price","bid_amount"]
[1742828154220,0.35266264,88085.0,88084.0,0.001]
[1742828154653,0.227061,88082.0,88081.0,0.0891]
[1742828154987,0.227059,88083.0,88081.0,0.0891]
[1742828155140,0.238414,88082.0,88081.0,0.01]
[1742828156268,0.227055,88084.0,88081.0,0.01]
[1742828156478,0.246759,88084.0,88081.0,0.01]
[1742828156862,0.227061,88082.0,88081.0,0.01]
[1742828157061,0.019704,88084.0,88081.0,0.01]
[1742828157062,0.227059,88083.0,88081.0,0.01]
[1742828157286,0.227061,88082.0,88081.0,0.01]
[1742828158242,0.227061,88082.0,88081.0,0.012]
[1742828160011,0.35267164,88082.0,88081.0,0.012]
[1742828160211,0.011352,88086.0,88081.0,0.012]
[1742828160212,0.01162042,88087.0,88082.0,0.227061]
[1742828160412,0.12560964,88086.0,88081.0,0.012]
[1742828160634,0.011352,88084.0,88081.0,0.012]
[1742828160883,0.34131764,88083.0,88081.0,0.012]
[1742828161076,0.34131764,88083.0,88081.0,0.01]
[1742828161290,0.238414,88082.0,88081.0,0.01]
[1742828161495,0.35267164,88082.0,88081.0,0.01]
[1742828161928,0.01162042,88087.0,88081.0,0.01]
[1742828162165,0.001,88086.0,88081.0,0.01]
[1742828162360,0.227055,88085.0,88082.0,0.227061]
[1742828162564,0.25949185,88086.0,88083.0,0.227058]
[1742828163391,0.239403,88086.0,88083.0,0.227058]
[1742828163765,0.238403,88086.0,88083.0,0.227058]
[1742828163940,0.227053,88085.0,88083.0,0.227058]
[1742828164144,0.227058,88083.0,88080.0,0.227064]
[1742828164343,0.011353,88079.0,88075.0,0.0763]
[1742828164551,0.11425764,88082.0,88081.0,0.228063]
[1742828164758,0.0003398,88087.0,88086.0,0.35565]
[1742828164956,0.0003398,88087.0,88086.0,0.36059293]
[1742828165181,0.0003398,88087.0,88086.0,0.37194493]
[1742828165589,0.0003398,88087.0,88086.0,0.80438578]
[1742828165797,0.0003398,88087.0,88086.0,0.82845385]
[1742828167213,0.0003398,88087.0,88086.0,0.83345385]
[1742828169166,0.0003398,88087.0,88086.0,0.94771149]
[1742828170011,0.0003398,88087.0,88086.0,0.94271149]
[1742828170212,0.0003398,88087.0,88086.0,0.94771149]
[1742828170418,0.0013398,88087.0,88086.0,0.94771149]
[1742828173538,0.0013398,88087.0,88086.0,1.08251149]
[1742828175859,0.0013398,88087.0,88086.0,0.50884293]
[1742828175999,0.2397398,88087.0,88086.0,0.01141456]
[1742828176258,0.2397398,88087.0,88086.0,0.005]
[1742828176467,0.35399744,88087.0,88086.0,0.005]
[1742828176923,0.238407,88085.0,88075.0,0.0001699]
[1742828177137,0.227061,88082.0,88078.0,0.22707]
[1742828177365,0.238429,88076.0,88075.0,0.0001699]
[1742828177591,0.11425764,88081.0,88075.0,0.0001699]
[1742828177835,0.227066,88080.0,88077.0,0.227074]
[1742828178083,0.238429,88076.0,88075.0,0.0001699]
[1742828179516,0.35268664,88076.0,88075.0,0.0021699]
[1742828180149,0.35268664,88076.0,88075.0,0.0001699]
[1742828180350,0.36512758,88076.0,88075.0,0.0001699]
[1742828180613,0.36512758,88076.0,88075.0,0.0011699]
[1742828182467,0.35377458,88076.0,88075.0,0.0011699]
[1742828182619,0.01244094,88076.0,88075.0,0.0011699]
[1742828182829,0.23951694,88076.0,88075.0,0.0011699]
[1742828183862,0.01244094,88076.0,88075.0,0.2282489]
[1742828184109,0.001,88076.0,88075.0,0.0011699]
[1742828184310,0.001,88076.0,88075.0,0.2282489]
[1742828184869,0.001,88076.0,88075.0,0.23051935]
[1742828185305,0.001,88076.0,88075.0,0.2282489]
[1742828186167,0.001,88076.0,88075.0,0.0011699]
[1742828186390,0.35368664,88076.0,88075.0,0.0011699]
[1742828186797,0.44233364,88076.0,88075.0,0.0011699]
[1742828187020,0.101,88076.0,88075.0,0.0011699]
[1742828187219,0.101,88076.0,88075.0,0.2282489]
[1742828189861,0.5511361,88076.0,88075.0,0.0011699]
[1742828190070,0.5511361,88076.0,88075.0,0.0001699]
[1742828190284,0.5501361,88076.0,88075.0,0.0001699]
[1742828190493,0.5521361,88076.0,88075.0,0.0001699]
[1742828190906,0.5551361,88076.0,88075.0,0.0001699]
[1742828191542,0.8551361,88076.0,88075.0,0.0001699]
[1742828193323,0.7787361,88076.0,88075.0,0.0001699]
[1742828194690,0.75768664,88076.0,88075.0,0.0001699]
[1742828195117,0.643429,88076.0,88075.0,0.0001699]
[1742828197258,0.641429,88076.0,88075.0,0.0001699]
[1742828197672,0.75568664,88076.0,88075.0,0.0001699]
[1742828198075,0.75268664,88076.0,88075.0,0.0001699]
[1742828198285,0.90849593,88076.0,88075.0,0.0001699]
[1742828198498,1.04019593,88076.0,88075.0,0.0001699]
[1742828198701,1.04474593,88076.0,88075.0,0.0001699]
[1742828198907,1.04174593,88076.0,88075.0,0.0001699]
[1742828199117,1.04374593,88076.0,88075.0,0.0001699]
[1742828199350,1.04674593,88076.0,88075.0,0.0001699]
[1742828199559,1.04474593,88076.0,88075.0,0.0001699]
[1742828200003,0.538438,88073.0,88072.0,7e-07]
[1742828200215,0.65269564,88073.0,88072.0,7e-07]
[1742828201255,0.67374493,88073.0,88072.0,7e-07]
[1742828201674,0.75944493,88073.0,88072.0,7e-07]
[1742828202370,0.75444493,88073.0,88072.0,7e-07]
[1742828202541,0.75644493,88073.0,88072.0,7e-07]
[1742828202760,0.76144493,88073.0,88072.0,7e-07]
[1742828202948,0.76144493,88073.0,88072.0,0.0100007]
[1742828203730,0.78470737,88073.0,88072.0,0.0100007]
[1742828203962,0.78270737,88073.0,88072.0,0.0100007]
[1742828204367,0.78270737,88073.0,88072.0,7e-07]
[1742828205139,0.78270737,88073.0,88072.0,0.0001706]
[1742828205348,0.78770737,88073.0,88072.0,0.0011706]
[1742828207212,0.80700737,88073.0,88072.0,0.0011706]
[1742828207429,0.94172737,88073.0,88072.0,0.0011706]
[1742828208340,0.64172737,88073.0,88072.0,0.0011706]
[1742828208560,0.97548673,88073.0,88072.0,0.0011706]
[1742828210457,0.95222429,88073.0,88072.0,0.0011706]
[1742828211035,0.91846493,88073.0,88072.0,0.0011706]
[1742828211242,0.80420729,88073.0,88072.0,0.0011706]
[1742828211628,0.66948729,88073.0,88072.0,0.0011706]
[1742828212117,0.105,88073.0,88072.0,0.6451566]
[1742828212290,0.105,88073.0,88072.0,0.7727566]
[1742828212525,0.109,88073.0,88072.0,0.7727566]
[1742828212730,0.112,88073.0,88072.0,0.7727566]
[1742828213264,0.103,88073.0,88072.0,0.7727566]
[1742828214742,0.102,88073.0,88072.0,0.7727566]
[1742828215138,0.101,88073.0,88072.0,0.7727566]
[1742828215886,0.102,88073.0,88072.0,0.4180706]
[1742828216092,0.339438,88073.0,88072.0,0.4180706]
[1742828216299,0.338438,88073.0,88072.0,0.4180706]
[1742828216513,0.338438,88073.0,88072.0,0.4190706]
[1742828216736,0.338438,88073.0,88072.0,0.4200706]
[1742828217341,0.45269564,88073.0,88072.0,0.0021706]
[1742828218104,0.45269564,88073.0,88072.0,0.0001706]
[1742828218317,0.75269564,88073.0,88072.0,0.0001706]
[1742828218526,0.75303544,88073.0,88072.0,0.0041706]
[1742828219537,0.75303544,88073.0,88072.0,0.0001706]
[1742828219905,0.75603544,88073.0,88072.0,0.0001706]
[1742828221027,0.84637165,88073.0,88072.0,6e-07]
[1742828221224,0.89547165,88073.0,88072.0,6e-07]
[1742828221382,0.538467,88062.0,88061.0,0.002]
[1742828221584,0.78740464,88062.0,88061.0,0.002]
[1742828223337,0.78940464,88062.0,88061.0,0.002]
[1742828223541,0.79240464,88062.0,88061.0,0.002]
[1742828228912,0.005,88062.0,88061.0,0.002]
[1742828229470,0.232112,88062.0,88061.0,0.002]
[1742828229919,0.243467,88062.0,88061.0,0.002]
[1742828230120,0.241467,88062.0,88061.0,0.002]
[1742828230321,0.238467,88062.0,88061.0,0.002]
[1742828230764,0.239467,88062.0,88061.0,0.002]
[1742828231171,0.239467,88062.0,88061.0,0.0021699]
[1742828231803,0.45034504,88062.0,88061.0,0.0021699]
[1742828232007,0.65372464,88062.0,88061.0,0.0021699]
[1742828233218,0.67482813,88062.0,88061.0,0.0021699]
[1742828233388,0.67682813,88062.0,88061.0,0.0021699]
[1742828233597,0.68082813,88062.0,88061.0,0.0021699]
[1742828233993,0.67682813,88062.0,88061.0,0.0021699]
[1742828234173,0.79108577,88062.0,88061.0,0.0021699]
[1742828234377,0.79508577,88062.0,88061.0,0.0021699]
[1742828234562,0.68082813,88062.0,88061.0,0.0021699]
[1742828235969,0.67782813,88062.0,88061.0,0.0021699]
[1742828236413,0.68082813,88062.0,88061.0,0.0021699]
[1742828237123,0.238515,88046.0,88043.0,0.227161]
[1742828237325,0.227157,88045.0,88042.0,0.227164]
[1742828237530,0.238515,88046.0,88043.0,0.22728404]
[1742828237737,0.227157,88045.0,88043.0,0.00012404]
[1742828239149,0.23951,88046.0,88043.0,0.00012404]
[1742828239311,0.001,88046.0,88043.0,0.28178941]
[1742828239559,0.001,88046.0,88043.0,0.22728504]
[1742828239782,0.001,88046.0,88043.0,0.00112404]
[1742828239983,0.001,88046.0,88044.0,0.227159]
[1742828240195,0.22714,88052.0,88043.0,0.00112404]
[1742828240196,0.238491,88054.0,88043.0,0.00112404]
[1742828240414,0.011356,88058.0,88044.0,0.1025291]
[1742828240620,0.227133,88054.0,88050.0,0.227143]
[1742828240843,0.227137,88053.0,88048.0,0.227147]
[1742828241053,0.227143,88051.0,88047.0,0.227146]
[1742828241282,0.227143,88050.0,88045.0,0.227155]
[1742828241688,0.227143,88050.0,88046.0,0.227153]
[1742828242714,0.01154916,88051.0,88047.0,0.22715]
[1742828242913,0.227143,88051.0,88047.0,0.22715]
[1742828243109,0.23854186,88051.0,88047.0,0.22715]
[1742828243337,0.227144,88050.0,88048.0,0.001]
[1742828243541,0.227146,88049.0,88048.0,0.001]
[1742828243691,0.227146,88049.0,88046.0,0.227152]
[1742828243893,0.227146,88049.0,88045.0,0.227154]
[1742828244095,0.24990386,88051.0,88043.0,0.00012404]
[1742828244096,0.238516,88044.0,88043.0,0.00012404]
[1742828245994,0.227159,88044.0,88043.0,0.00012404]
[1742828247310,0.238504,88049.0,88043.0,0.00412404]
[1742828247504,0.011357,88046.0,88043.0,0.00412404]
[1742828247655,0.227154,88046.0,88043.0,0.23128404]
[1742828247861,0.227156,88045.0,88043.0,0.00412404]
[1742828248260,0.011357,88047.0,88043.0,0.00012404]
[1742828248464,0.227154,88046.0,88043.0,0.22728304]
[1742828248648,0.227157,88045.0,88043.0,0.00012404]
[1742828249058,0.373128,88055.0,88043.0,0.22728404]
[1742828249423,0.24826182,88046.0,88043.0,0.00012404]
[1742828249627,0.02110882,88046.0,88044.0,0.227157]
[1742828249754,0.02110882,88046.0,88043.0,0.00012404]
[1742828249958,0.02110882,88046.0,88044.0,0.227157]
[1742828250358,0.24826282,88046.0,88044.0,0.227157]
[1742828250625,0.227154,88046.0,88043.0,0.22728504]
[1742828250829,0.227154,88046.0,88043.0,0.23028504]
[1742828251350,0.227154,88046.0,88043.0,0.22728504]
[1742828251747,0.227154,88046.0,88044.0,0.003]
[1742828251951,0.227151,88047.0,88044.0,0.003]
[1742828252307,0.227156,88045.0,88044.0,0.003]
[1742828252484,0.238512,88046.0,88044.0,0.003]
[1742828252893,0.238513,88045.0,88044.0,0.003]
[1742828253293,0.227159,88044.0,88043.0,0.00012404]
[1742828253505,0.238516,88044.0,88043.0,0.00012404]
[1742828253717,0.238516,88044.0,88043.0,0.00312404]
[1742828254134,0.228516,88044.0,88043.0,0.00012404]
[1742828255341,0.227156,88045.0,88043.0,0.00012404]
[1742828255547,0.227154,88046.0,88043.0,0.22728304]
[1742828255756,0.227154,88046.0,88043.0,0.00012404]
[1742828255970,0.227157,88045.0,88043.0,0.00012404]
[1742828256212,0.227159,88044.0,88043.0,0.00012404]
[1742828256832,0.238516,88044.0,88043.0,0.00012404]
[1742828257086,0.238556,88044.0,88043.0,0.00012404]
[1742828257338,0.238556,88044.0,88043.0,0.00112404]
[1742828258343,4e-05,88044.0,88043.0,0.00112404]
[1742828258607,0.227199,88044.0,88043.0,0.00112404]
[1742828258878,0.238556,88044.0,88043.0,0.00112404]
[1742828262986,4e-05,88044.0,88043.0,0.22828504]
[1742828263740,0.227199,88044.0,88043.0,0.00112404]
[1742828264015,4e-05,88044.0,88043.0,0.22828504]
[1742828264672,0.011397,88044.0,88043.0,0.01112404]
[1742828264903,0.238556,88044.0,88043.0,0.01112404]
[1742828265718,0.227199,88044.0,88043.0,0.01112404]
[1742828266432,4e-05,88044.0,88043.0,0.01112404]
[1742828266695,4e-05,88044.0,88043.0,0.32335657]
[1742828266930,4e-05,88044.0,88043.0,0.39468389]
[1742828267136,4e-05,88044.0,88043.0,0.38332589]
[1742828268017,4e-05,88044.0,88043.0,0.36878504]
[1742828268786,4e-05,88044.0,88043.0,0.36778504]
[1742828269207,4e-05,88044.0,88043.0,0.36878504]
[1742828269407,4e-05,88044.0,88043.0,0.32108504]
[1742828269900,4e-05,88044.0,88043.0,0.32008504]
[1742828270993,4e-05,88044.0,88043.0,0.23728504]
[1742828271430,4e-05,88044.0,88043.0,0.24128504]
[1742828272183,4e-05,88044.0,88043.0,1.80441121]
[1742828272392,0.0003394,88047.0,88046.0,0.56851]
[1742828272588,0.0003394,88047.0,88046.0,0.86157817]
[1742828272789,0.0003394,88047.0,88046.0,0.87294336]
[1742828272941,0.0003394,88047.0,88046.0,0.39142268]
[1742828273156,0.0003394,88047.0,88046.0,0.54052353]
[1742828273361,0.0003394,88047.0,88046.0,0.55188053]
[1742828275141,0.0003394,88047.0,88046.0,0.57469788]
[1742828275348,0.0003394,88047.0,88046.0,0.65348584]
[1742828275624,0.0003394,88047.0,88046.0,0.68890714]
[1742828275798,0.0003394,88047.0,88046.0,0.69490714]
[1742828276033,0.0013394,88047.0,88046.0,0.69790714]
[1742828276245,0.0013394,88047.0,88046.0,1.11580714]
[1742828278390,0.0013394,88047.0,88046.0,1.08038584]
[1742828278588,0.0013394,88047.0,88046.0,1.11578289]
[1742828279911,0.1013394,88047.0,88046.0,1.11578289]
[1742828280318,0.1013394,88047.0,88046.0,1.12078289]
[1742828280879,4e-07,88047.0,88046.0,1.42078289]
[1742828281084,4e-07,88047.0,88046.0,1.38538584]
[1742828281906,4e-07,88047.0,88046.0,1.41038584]
[1742828283677,4e-07,88047.0,88046.0,1.08034584]
[1742828284611,4e-07,88047.0,88046.0,1.08030584]
[1742828285631,4e-07,88047.0,88046.0,1.62062584]
[1742828286348,0.0003398,88047.0,88046.0,1.62062584]
[1742828287982,0.0003398,88047.0,88046.0,1.328853]
[1742828289203,0.0003398,88047.0,88046.0,1.322853]
[1742828289515,0.0003398,88047.0,88046.0,1.319853]
[1742828289857,0.0003398,88047.0,88046.0,1.327853]
[1742828290557,0.0003398,88047.0,88046.0,1.193373]
[1742828290811,0.0003398,88047.0,88046.0,0.653053]
[1742828291952,0.0003398,88047.0,88046.0,0.647053]
[1742828292324,0.0003398,88047.0,88046.0,0.653053]
[1742828292562,0.0003398,88047.0,88046.0,0.651053]
[1742828292756,0.0003398,88047.0,88046.0,0.006]
[1742828293158,0.0003398,88047.0,88046.0,0.235153]
[1742828293815,0.0003398,88047.0,88046.0,0.227153]
[1742828294367,0.0003398,88047.0,88046.0,0.228153]
[1742828294584,0.0003394,88047.0,88046.0,0.228153]
[1742828295119,0.0003394,88047.0,88046.0,0.23042439]
[1742828295323,0.0003394,88047.0,88046.0,0.228153]
[1742828295528,0.0003394,88047.0,88046.0,0.231153]
[1742828297208,0.2274904,88047.0,88046.0,0.004]
[1742828297963,0.0003394,88047.0,88046.0,0.2313227]
[1742828303805,0.0003394,88047.0,88046.0,0.0041697]
[1742828304009,0.2274904,88047.0,88046.0,0.0041697]
[1742828304204,0.0003394,88047.0,88046.0,0.0041697]
[1742828304415,0.0003394,88047.0,88046.0,0.2313227]
[1742828309863,0.0003394,88047.0,88046.0,0.25459902]
[1742828311411,0.0003394,88047.0,88046.0,0.34259902]
[1742828312181,0.0003394,88047.0,88046.0,0.48275451]
[1742828312379,0.0003394,88047.0,88046.0,0.81818543]
[1742828312581,0.0003394,88047.0,88046.0,0.84818543]
[1742828312981,0.0003394,88047.0,88046.0,0.85846796]
[1742828313185,0.0003394,88047.0,88046.0,0.85546796]
[1742828313359,0.0003394,88047.0,88046.0,0.85746796]
[1742828313569,0.0003394,88047.0,88046.0,0.85846796]
[1742828314145,0.0013394,88047.0,88046.0,0.86046796]
[1742828314351,0.0003394,88047.0,88046.0,0.85846796]
[1742828314576,0.0003394,88047.0,88046.0,0.85546796]
[1742828314897,0.0013394,88047.0,88046.0,0.85746796]
[1742828315032,0.0013394,88047.0,88046.0,0.86346796]
[1742828315764,0.0013394,88047.0,88046.0,0.96537032]
[1742828316613,0.0013394,88047.0,88046.0,0.95937032]
[1742828316816,0.0003394,88047.0,88046.0,0.94608779]
[1742828317257,0.0013394,88047.0,88046.0,1.36698779]
[1742828317460,0.0013394,88047.0,88046.0,1.37298779]
[1742828317896,0.0013394,88047.0,88046.0,0.9028323]
[1742828318079,0.0013394,88047.0,88046.0,0.9592323]
[1742828318290,0.0013394,88047.0,88046.0,0.92380138]
[1742828318516,0.0013394,88047.0,88046.0,0.93834223]
[1742828318960,0.0013394,88047.0,88046.0,0.94969923]
[1742828319665,0.0013394,88047.0,88046.0,0.84779687]
[1742828320273,0.0013394,88047.0,88046.0,0.88323048]
[1742828320523,0.0013394,88047.0,88046.0,1.00248812]
[1742828320742,0.0013394,88047.0,88046.0,1.42588812]
[1742828325698,4e-07,88047.0,88046.0,1.45088812]
[1742828329297,0.0003394,88053.0,88046.0,1.45088812]
[1742828329498,0.0003394,88053.0,88052.0,0.55803485]
[1742828329737,0.0003394,88053.0,88052.0,0.7077261]
[1742828329994,0.0003394,88053.0,88052.0,1.2480061]
[1742828330331,0.0003394,88053.0,88052.0,1.25662171]
[1742828331163,4e-07,88053.0,88052.0,1.77962171]
[1742828331361,0.0003398,88076.0,88075.0,0.58297285]
[1742828331362,6e-07,88076.0,88075.0,0.58297285]
[1742828331544,6e-07,88076.0,88075.0,1.2599237]
[1742828331954,6e-07,88076.0,88075.0,1.1255637]
[1742828332169,6e-07,88076.0,88075.0,1.2599237]
[1742828332592,6e-07,88076.0,88075.0,1.28297824]
[1742828332806,6e-07,88076.0,88075.0,1.29140124]
[1742828333011,6e-07,88076.0,88075.0,1.32754059]
[1742828333632,6e-07,88076.0,88075.0,1.29210698]
[1742828334237,6e-07,88076.0,88075.0,1.29810698]
[1742828334445,6e-07,88076.0,88075.0,1.30410698]
[1742828335613,6e-07,88076.0,88075.0,0.68003314]
[1742828335932,6e-07,88076.0,88075.0,0.6569786]
[1742828336374,6e-07,88076.0,88075.0,0.012]
[1742828336588,0.0799006,88076.0,88075.0,0.012]
[1742828336800,0.3069766,88076.0,88075.0,0.012]
[1742828337006,0.3183296,88076.0,88075.0,0.012]
[1742828337943,0.227085,88073.0,88070.0,0.227091]
[1742828338179,0.227087,88072.0,88065.0,0.227103]
[1742828338377,0.227089,88071.0,88066.0,0.227102]
[1742828338583,0.227089,88071.0,88058.0,0.4178996]
[1742828338804,0.011354,88072.0,88046.0,0.0151697]
[1742828338805,0.0799006,88076.0,88050.0,0.4178996]
[1742828339023,0.238494,88052.0,88050.0,0.4178996]
[1742828339288,0.238494,88052.0,88050.0,0.00012404]
[1742828339767,0.227138,88052.0,88050.0,0.00012404]
[1742828340733,0.238494,88052.0,88050.0,0.00012404]
[1742828340992,0.011357,88051.0,88050.0,0.00012404]
[1742828342155,0.011357,88051.0,88050.0,0.00212404]
[1742828342378,0.011357,88051.0,88050.0,0.00012404]
[1742828342640,0.011357,88051.0,88050.0,0.00412404]
[1742828342817,0.02243616,88051.0,88050.0,0.00612404]
[1742828343113,0.02243616,88051.0,88050.0,0.00012404]
[1742828343736,0.227133,88054.0,88050.0,0.25102918]
[1742828343961,0.227136,88053.0,88050.0,0.02388618]
[1742828344179,0.238492,88053.0,88050.0,0.02388618]
[1742828344351,0.238496,88052.0,88050.0,0.02388618]
[1742828344561,0.238496,88052.0,88050.0,0.02705588]
[1742828345028,0.011357,88051.0,88050.0,0.02705588]
[1742828345271,0.011357,88051.0,88050.0,0.00029374]
[1742828345508,0.011357,88051.0,88050.0,0.00329374]
[1742828345742,0.011357,88051.0,88050.0,0.00429374]
[1742828346213,0.011357,88051.0,88050.0,0.00129374]
[1742828346451,0.011357,88051.0,88050.0,0.00429374]
[1742828348186,0.011357,88051.0,88050.0,0.00329374]
[1742828348656,0.013357,88051.0,88050.0,0.00029374]
[1742828348887,0.011357,88051.0,88050.0,0.00029374]
[1742828349112,0.012357,88051.0,88050.0,0.00029374]
[1742828349320,0.014357,88051.0,88050.0,0.00029374]
[1742828349530,0.013357,88051.0,88050.0,0.00029374]
[1742828349750,0.12761464,88051.0,88050.0,0.00029374]
[1742828349963,0.35475564,88051.0,88050.0,0.00029374]
[1742828350663,0.35275564,88051.0,88050.0,0.00029374]
[1742828351118,0.35375564,88051.0,88050.0,0.00029374]
[1742828354990,0.228141,88051.0,88050.0,0.00029374]
[1742828355232,0.239498,88051.0,88050.0,0.00029374]
[1742828356454,0.35375564,88051.0,88050.0,0.00029374]
[1742828363456,0.35475564,88051.0,88050.0,0.00029374]
[1742828364185,0.35375564,88051.0,88050.0,0.00029374]
[1742828364423,0.239498,88051.0,88050.0,0.00029374]
[1742828364898,0.242498,88051.0,88050.0,0.00029374]
[1742828366068,0.241498,88051.0,88050.0,0.00029374]
[1742828366315,0.239498,88051.0,88050.0,0.00029374]
[1742828366857,0.238498,88051.0,88050.0,0.00029374]
[1742828367348,0.239498,88051.0,88050.0,0.00029374]
[1742828367810,0.241498,88051.0,88050.0,0.00029374]
[1742828378769,0.003,88051.0,88050.0,0.00029374]
[1742828378977,0.003,88051.0,88050.0,0.22743674]
[1742828379637,0.003,88051.0,88050.0,0.30453674]
[1742828380277,0.241498,88051.0,88050.0,0.00029374]
[1742828380485,0.35475564,88051.0,88050.0,0.00029374]
[1742828380916,0.35475564,88051.0,88050.0,0.00129374]
[1742828381387,0.35475564,88051.0,88050.0,0.00029374]
[1742828381573,0.35275564,88051.0,88050.0,0.00029374]
[1742828381775,0.35275564,88051.0,88050.0,0.00229374]
[1742828383248,0.238498,88051.0,88050.0,0.00229374]
[1742828385947,0.238498,88051.0,88050.0,0.03313315]
[1742828386930,0.238498,88051.0,88050.0,0.00229374]
[1742828389124,0.011355,88064.0,88050.0,0.00229374]
[1742828389353,0.227111,88063.0,88056.0,0.227127]
[1742828389594,0.227098,88068.0,88057.0,0.227125]
[1742828389853,0.227095,88069.0,88058.0,0.0319682]
[1742828390074,0.238446,88071.0,88068.0,0.227096]
[1742828390302,0.238446,88071.0,88067.0,0.227099]
[1742828390539,0.238443,88071.0,88067.0,0.227099]
[1742828390787,0.227097,88069.0,88066.0,0.227101]
[1742828391024,0.227095,88069.0,88066.0,0.2271]
[1742828391268,0.227095,88069.0,88067.0,0.227098]
[1742828391492,0.001,88069.0,88067.0,0.227098]
[1742828391719,0.001,88069.0,88068.0,0.227097]
[1742828391947,0.227092,88070.0,88067.0,0.227098]
[1742828392577,0.227092,88070.0,88068.0,0.227096]
[1742828392788,0.227092,88070.0,88067.0,0.227098]
[1742828393535,0.227092,88070.0,88067.0,0.127098]
[1742828393765,0.227097,88068.0,88064.0,0.227107]
[1742828393978,0.011354,88068.0,88061.0,0.227113]
[1742828394214,0.011354,88068.0,88066.0,0.227102]
[1742828394215,0.227097,88068.0,88066.0,0.227102]
[1742828394457,0.227094,88069.0,88065.0,0.227104]
[1742828395194,0.227097,88068.0,88062.0,0.227112]
[1742828395414,0.011355,88064.0,88059.0,0.227118]
[1742828395639,0.227104,88065.0,88060.0,0.227115]
[1742828396052,0.227104,88065.0,88061.0,0.227115]
[1742828396304,0.238462,88066.0,88061.0,0.227115]
[1742828396305,0.227108,88064.0,88061.0,0.227115]
[1742828396516,0.22711,88063.0,88060.0,0.227115]
[1742828397786,0.01159769,88073.0,88067.0,0.227097]
[1742828398020,0.0003394,88073.0,88071.0,0.227089]
[1742828398224,0.0003394,88073.0,88072.0,0.227086]
[1742828398392,0.0003394,88073.0,88072.0,0.24071061]
[1742828398598,0.0003394,88073.0,88072.0,0.227086]
[1742828399354,0.0013394,88073.0,88072.0,0.36723849]
[1742828399761,0.0003394,88073.0,88072.0,0.36723849]
[1742828400192,0.0003394,88073.0,88072.0,0.77378409]
[1742828400812,0.0003394,88073.0,88072.0,0.77478409]
[1742828401806,0.0003394,88073.0,88072.0,0.78613809]
[1742828402019,0.0003394,88073.0,88072.0,0.78813809]
[1742828402266,0.0003394,88073.0,88072.0,0.79313809]
[1742828402490,4e-07,88073.0,88072.0,1.17428722]
[1742828402929,4e-07,88073.0,88072.0,0.74002645]
[1742828403153,0.2384384,88073.0,88072.0,0.4208996]
[1742828403366,0.24983151,88073.0,88072.0,0.4208996]
[1742828403584,0.01139351,88073.0,88072.0,0.4208996]
[1742828403805,4e-07,88073.0,88072.0,0.4198996]
[1742828404269,0.2270844,88073.0,88072.0,0.4218996]
[1742828404415,0.2270844,88073.0,88072.0,0.4238996]
[1742828404644,4e-07,88073.0,88072.0,0.4238996]
[1742828404843,0.227082,88074.0,88072.0,0.4238996]
[1742828405081,0.227084,88073.0,88072.0,0.4238996]
[1742828405284,0.238438,88073.0,88072.0,0.4238996]
[1742828405505,0.227135,88053.0,88049.0,0.227146]
[1742828405727,0.011356,88058.0,88047.0,0.1907996]
[1742828405926,0.011356,88058.0,88053.0,0.227135]
[1742828405927,0.227125,88057.0,88053.0,0.227135]
[1742828406138,0.227128,88056.0,88053.0,0.227135]
[1742828406364,0.011356,88058.0,88051.0,0.227139]
[1742828406544,0.227125,88057.0,88051.0,0.22714]
[1742828406746,0.227121,88059.0,88054.0,0.227131]
[1742828406954,0.238477,88059.0,88049.0,0.227141]
[1742828407179,0.238498,88051.0,88047.0,0.29267567]
[1742828407844,0.35275564,88051.0,88047.0,0.10187607]
[1742828408221,0.35275564,88051.0,88050.0,0.00529374]
[1742828408626,0.35275564,88051.0,88050.0,0.00029374]
[1742828409288,0.35275564,88051.0,88050.0,0.00129374]
[1742828409520,0.227137,88053.0,88050.0,0.22843574]
[1742828409687,0.227137,88053.0,88050.0,0.00129374]
[1742828409688,0.227139,88052.0,88050.0,0.00129374]
[1742828409972,0.255928,88067.0,88050.0,0.00129374]
[1742828410185,0.32304816,88072.0,88051.0,0.011357]
[1742828410423,0.23834855,88075.0,88072.0,0.227083]
[1742828410424,0.01126955,88075.0,88072.0,0.227083]
[1742828410629,0.01126955,88075.0,88073.0,0.227083]
[1742828410750,0.011353,88078.0,88073.0,0.0454167]
[1742828410975,0.011354,88073.0,88058.0,0.227123]
[1742828411210,0.011354,88073.0,88046.0,0.0001697]
[1742828411211,0.22714,88052.0,88046.0,0.0001697]
[1742828411433,0.22714,88052.0,88050.0,0.00029374]
[1742828411434,0.12561464,88051.0,88050.0,0.00029374]
[1742828412734,0.42561464,88051.0,88050.0,0.00129374]
[1742828412950,0.53987228,88051.0,88050.0,0.00129374]
[1742828413150,0.42561464,88051.0,88050.0,0.00129374]
[1742828414206,0.42761464,88051.0,88050.0,0.00129374]
[1742828414762,0.42761464,88051.0,88050.0,0.00029374]
[1742828418186,0.65475564,88051.0,88050.0,0.00029374]
[1742828418520,0.240498,88051.0,88050.0,0.00029374]
[1742828419563,0.002,88051.0,88050.0,0.22743674]
[1742828419910,0.002,88051.0,88050.0,0.25560573]
[1742828420114,0.002,88051.0,88050.0,0.25333459]
[1742828420329,0.002,88051.0,88050.0,0.27628171]
[1742828420544,0.227089,88071.0,88052.0,0.011356]
[1742828420746,0.238441,88072.0,88067.0,0.227098]
[1742828420950,0.2271,88067.0,88064.0,0.227105]
[1742828421161,0.227097,88068.0,88065.0,0.227104]
[1742828421368,0.22709,88071.0,88060.0,0.227116]
[1742828421592,0.011354,88072.0,88065.0,0.227102]
[1742828421814,0.011354,88072.0,88050.0,0.39085071]
[1742828421815,0.227099,88068.0,88063.0,0.227108]
[1742828422022,0.227099,88068.0,88064.0,0.227105]
[1742828422612,0.011355,88065.0,88057.0,0.227123]
[1742828422813,0.011355,88065.0,88058.0,0.0227123]
[1742828422971,0.011354,88068.0,88061.0,0.227114]
[1742828423192,0.227104,88066.0,88063.0,0.22711]
[1742828423824,0.227107,88065.0,88061.0,0.227114]
[1742828424024,0.229107,88065.0,88061.0,0.227114]
[1742828424248,0.227108,88064.0,88061.0,0.227114]
[1742828424469,0.238465,88063.0,88059.0,0.227118]
[1742828424669,0.238465,88063.0,88060.0,0.227117]
[1742828424900,0.002,88065.0,88061.0,0.227114]